fUST/lending_fUST_20251123
["ID","MTS","AMOUNT","RATE_DAILY","PERIOD"]
[394681469,1763869838317,-500.0,0.00013698,2]
[394681470,1763869838331,-500.0,0.00013698,2]
[394681471,1763869838341,-500.0,0.00013698,2]
[394681472,1763869838351,-500.0,0.00013698,2]
[394681473,1763869838362,-500.0,0.00013698,2]
[394681474,1763869838372,-500.0,0.00013698,2]
[394681475,1763869838382,-500.0,0.00013698,2]
[394681476,1763869838392,-500.0,0.00013698,2]
[394681477,1763869838401,-500.0,0.00013698,2]
[394681478,1763869838412,-500.0,0.00013698,2]
[394681479,1763869838423,-500.0,0.00013698,2]
[394681480,1763869838432,-500.0,0.00013698,2]
[394681481,1763869838442,-500.0,0.00013698,2]
[394681482,1763869838451,-500.0,0.00013698,2]
[394681483,1763869838460,-500.0,0.00013698,2]
[394681484,1763869838470,-315.37790199,0.00013698,2]
[394681485,1763869838479,-200.0,0.00013699,2]
[394681486,1763869838489,-1000.0,0.00013699,2]
[394681487,1763869838498,-1000.0,0.00013699,2]
[394681488,1763869838507,-1244.155483,0.00013699,2]
[394681489,1763869838516,-2754.271585,0.00013699,2]
[394681490,1763869838526,-5306.1553278,0.00013699,2]
[394681491,1763869838535,-152.307832,0.00013699,2]
[394681492,1763869838545,-1149.058021,0.00013699,2]
[394681493,1763869838554,-500.0,0.00013699,2]
[394681494,1763869838563,-500.0,0.00013699,2]
[394681495,1763869838572,-500.0,0.00013699,2]
[394681496,1763869838581,-264.6804,0.00013699,2]
[394681497,1763869838590,-267.88662022,0.00013886,2]
[394681498,1763869838599,-1000.0,0.00013888,2]
[394681499,1763869838608,-1000.0,0.00013888,2]
[394681500,1763869838618,-579.0,0.00013888,2]
[394681501,1763869838627,-442.0,0.00014075,2]
[394681502,1763869838635,-407.86667436,0.00014121,2]
[394681503,1763869838644,-1000.0,0.00014121,2]
[394681504,1763869838653,-442.0,0.00014121,2]
[394681505,1763869838662,-442.0,0.000142,2]
[394681506,1763869838672,-442.0,0.00014303,2]
[394681507,1763869838681,-442.0,0.00014331,2]
[394681508,1763869838690,-204.0,0.00014347,2]
[394681509,1763869838700,-1518.6797442,0.00014368,2]
[394681510,1763869838709,-500.0,0.00014384,2]
[394681511,1763869838719,-256.2916,0.00014384,2]
[394681512,1763869838728,-442.0,0.00014392,2]
[394681513,1763869838738,-442.0,0.00014429,2]
[394681514,1763869838747,-16773.4563692,0.00014518,2]
[394681515,1763869838756,-13224.4678367,0.00014521,2]
[394681516,1763869838765,-267.88662022,0.00014588,2]
[394681517,1763869838774,-1008.00066087,0.00014668,2]
[394681518,1763869838784,-207.5,0.00014677,2]
[394681519,1763869838794,-157.0,0.000149,2]
[394681520,1763869838803,-157.0,0.000149,2]
[394681521,1763869838812,-151.0,0.00015,2]
[394681522,1763869838821,-206.44184147,0.00015068,2]
[394681523,1763869838831,-163.971177,0.00015068,2]
[394681524,1763869838840,-200.0,0.00015068,2]
[394681525,1763869838850,-1000.0,0.00015276,2]
[394681526,1763869838859,-1000.0,0.00015276,2]
[394681527,1763869838868,-1000.0,0.00015276,2]
[394681528,1763869838878,-267.88662022,0.00015289,2]
[394681529,1763869838887,-473.96907565,0.00015632,2]
[394681530,1763869838897,-151.0,0.000157,2]
[394681531,1763869838906,-151.0,0.000157,2]
[394681532,1763869838916,-1518.6797442,0.00015704,2]
[394681533,1763869838925,-157.0,0.000159,2]
[394681534,1763869838934,-157.0,0.000159,2]
[394681535,1763869838943,-79.67111318,0.00015904,2]
[394681536,1763869838955,-420.32888682,0.00015904,2]
[394681537,1763869838965,-500.0,0.00015904,2]
[394681538,1763869838974,-509.68533366,0.00015904,2]
[394681539,1763869838983,-500.0,0.00015904,2]
[394681540,1763869838992,-5615.66056281,0.0001599,2]
[394681541,1763869839002,-267.88662022,0.00015991,2]
[394681542,1763869839011,-1170.4469606,0.00016,2]
[394681543,1763869839022,-1829.5530394,0.00016,2]
[394681544,1763869839031,-151.0,0.00016,2]
[394681545,1763869839040,-3000.0,0.0001601,2]
[394681546,1763869839050,-3000.0,0.0001602,2]
[394681547,1763869839059,-3000.0,0.0001603,2]
[394681548,1763869839068,-3000.0,0.0001604,2]
[394681549,1763869839077,-3000.0,0.0001605,2]
[394681550,1763869839087,-3000.0,0.0001606,2]
[394681551,1763869839097,-3000.0,0.0001607,2]
[394681552,1763869839107,-3000.0,0.0001608,2]
[394681553,1763869839116,-3000.0,0.0001609,2]
[394681554,1763869839126,-500.0,0.00016098,2]
[394681555,1763869839135,-500.0,0.00016098,2]
[394681556,1763869839145,-500.0,0.00016098,2]
[394681557,1763869839154,-578.38829655,0.00016098,2]
[394681558,1763869839163,-500.0,0.00016098,2]
[394681559,1763869839174,-500.0,0.00016098,2]
[394681560,1763869839184,-500.46485859,0.00016098,2]
[394681561,1763869839194,-450.24275997,0.00016098,2]
[394681562,1763869839204,-500.0,0.00016098,2]
[394681563,1763869839214,-3000.0,0.000161,2]
[394681564,1763869839224,-3000.0,0.0001611,2]
[394681565,1763869839234,-3000.0,0.0001612,2]
[394681566,1763869839244,-3000.0,0.0001613,2]
[394681567,1763869839253,-2512.83130128,0.0001614,2]
[394681568,1763869839268,-487.16869872,0.0001614,2]
[394681569,1763869839278,-3000.0,0.0001615,2]
[394681570,1763869839288,-3000.0,0.0001616,2]
[394681571,1763869839297,-3000.0,0.0001617,2]
[394681572,1763869839307,-3000.0,0.0001618,2]
[394681573,1763869839316,-3000.0,0.0001619,2]
[394681574,1763869839325,-3000.0,0.000162,2]
[394681575,1763869839339,-3000.0,0.0001621,2]
[394681576,1763869839349,-993.28232886,0.0001622,2]
[394681577,1763869839361,-2006.71767114,0.0001622,2]
[394681578,1763869839371,-3000.0,0.0001623,2]
[394681579,1763869839382,-3000.0,0.0001624,2]
[394681580,1763869839391,-3000.0,0.0001625,2]
[394681581,1763869839402,-3000.0,0.0001626,2]
[394681582,1763869839411,-3000.0,0.0001627,2]
[394681583,1763869839421,-3000.0,0.0001628,2]
[394681584,1763869839430,-3000.0,0.0001629,2]
[394681585,1763869839439,-3000.0,0.000163,2]
[394681586,1763869839448,-3000.0,0.0001631,2]
[394681587,1763869839456,-3000.0,0.0001632,2]
[394681588,1763869839467,-981.18158539,0.0001633,2]
[394681589,1763869839478,-2018.81841461,0.0001633,2]
[394681590,1763869839487,-10000.0,0.00016338,2]
[394681591,1763869839496,-3000.0,0.0001634,2]
[394681592,1763869839504,-231.0,0.00016347,2]
[394681593,1763869839513,-3000.0,0.0001635,2]
[394681594,1763869839522,-977.90474983,0.0001636,2]
[394681600,1763869839784,-2022.09525017,0.0001636,2]
[394681602,1763869839793,-3000.0,0.0001637,2]
[394681604,1763869839802,-3000.0,0.0001638,2]
[394681606,1763869839811,-3000.0,0.0001639,2]
[394681607,1763869839820,-3000.0,0.000164,2]
[394681608,1763869839830,-151.0,0.000164,2]
[394681609,1763869839840,-151.0,0.000164,2]
[394681610,1763869839849,-160.0,0.00016405,2]
[394681611,1763869839858,-2377.86496807,0.0001641,2]
[394681619,1763869840341,-222.179782,0.00012196,2]
[394681620,1763869840350,-222.179782,0.00014761,2]
[394681621,1763869840360,-622.13503193,0.0001641,2]
[394681622,1763869840370,-3000.0,0.0001642,2]
[394681623,1763869840382,-3000.0,0.0001643,2]
[394681624,1763869840391,-500.0,0.00016438,2]
[394681625,1763869840400,-500.0,0.00016438,2]
[394681626,1763869840410,-588.98236089,0.00016438,2]
[394681627,1763869840419,-500.0,0.00016438,2]
[394681628,1763869840429,-500.0,0.00016438,2]
[394681629,1763869840438,-376.74344133,0.00016438,2]
[394681630,1763869840447,-500.0,0.00016438,2]
[394681631,1763869840459,-500.0,0.00016438,2]
[394681632,1763869840468,-500.0,0.00016438,2]
[394681633,1763869840478,-500.0,0.00016438,2]
[394681634,1763869840488,-650.00000001,0.00016438,2]
[394681635,1763869840498,-510.38000115,0.00016438,2]
[394681636,1763869840508,-510.38000115,0.00016438,2]
[394681637,1763869840518,-510.38000115,0.00016438,2]
[394681638,1763869840527,-689.93620183,0.00016438,2]
[394681639,1763869840536,-689.93620183,0.00016438,2]
[394681640,1763869840722,-689.93620183,0.00016438,2]
[394681641,1763869840733,-689.93620183,0.00016438,2]
[394681642,1763869840742,-689.93620183,0.00016438,2]
[394681643,1763869840751,-689.93620183,0.00016438,2]
[394681644,1763869840760,-689.93620183,0.00016438,2]
[394681645,1763869840769,-510.38000115,0.00016438,2]
[394681646,1763869840779,-689.93620183,0.00016438,2]
[394681647,1763869840788,-689.93620183,0.00016438,2]
[394681648,1763869840797,-510.38000115,0.00016438,2]
[394681649,1763869840806,-689.93620183,0.00016438,2]
[394681650,1763869840816,-510.38000115,0.00016438,2]
[394681651,1763869840825,-689.93620183,0.00016438,2]
[394681652,1763869840835,-510.38000115,0.00016438,2]
[394681653,1763869840845,-689.93620183,0.00016438,2]
[394681654,1763869840854,-510.38000115,0.00016438,2]
[394681655,1763869840864,-689.93620183,0.00016438,2]
[394681656,1763869840875,-510.38000115,0.00016438,2]
[394681657,1763869840884,-689.93620183,0.00016438,2]
[394681658,1763869840894,-689.93620183,0.00016438,2]
[394681659,1763869840905,-689.93620183,0.00016438,2]
[394681660,1763869840916,-689.93620183,0.00016438,2]
[394681661,1763869840926,-689.93620183,0.00016438,2]
[394681662,1763869840936,-689.93620183,0.00016438,2]
[394681663,1763869840945,-689.93620183,0.00016438,2]
[394681664,1763869840955,-510.38000115,0.00016438,2]
[394681665,1763869840964,-689.93620183,0.00016438,2]
[394681666,1763869840974,-510.38000115,0.00016438,2]
[394681667,1763869840983,-689.93620183,0.00016438,2]
[394681668,1763869840993,-510.38000115,0.00016438,2]
[394681669,1763869841002,-689.93620183,0.00016438,2]
[394681670,1763869841011,-510.38000115,0.00016438,2]
[394681671,1763869841020,-689.93620183,0.00016438,2]
[394681672,1763869841030,-689.93620183,0.00016438,2]
[394681673,1763869841040,-510.38000115,0.00016438,2]
[394681674,1763869841049,-689.93620183,0.00016438,2]
[394681675,1763869841059,-510.38000115,0.00016438,2]
[394681676,1763869841068,-689.93620183,0.00016438,2]
[394681677,1763869841078,-510.38000115,0.00016438,2]
[394681678,1763869841087,-689.93620183,0.00016438,2]
[394681679,1763869841096,-510.38000115,0.00016438,2]
[394681680,1763869841105,-689.93620183,0.00016438,2]
[394681681,1763869841114,-510.38000115,0.00016438,2]
[394681682,1763869841124,-689.93620183,0.00016438,2]
[394681683,1763869841133,-510.38000115,0.00016438,2]
[394681684,1763869841143,-689.93620183,0.00016438,2]
[394681685,1763869841153,-510.38000115,0.00016438,2]
[394681686,1763869841162,-689.93620183,0.00016438,2]
[394681687,1763869841171,-689.93620183,0.00016438,2]
[394681688,1763869841182,-510.38000115,0.00016438,2]
[394681689,1763869841191,-689.93620183,0.00016438,2]
[394681690,1763869841201,-510.38000115,0.00016438,2]
[394681691,1763869841211,-689.93620183,0.00016438,2]
[394681692,1763869841221,-510.38000115,0.00016438,2]
[394681693,1763869841231,-689.93620183,0.00016438,2]
[394681694,1763869841241,-510.38000115,0.00016438,2]
[394681695,1763869841250,-689.93620183,0.00016438,2]
[394681696,1763869841259,-689.93620183,0.00016438,2]
[394681697,1763869841269,-494.5732127,0.00016438,2]
[394681739,1763869844511,-222.179782,0.0001602,3]
[394681740,1763869844523,-222.179782,0.00016339,3]
[394681741,1763869844533,-15.80678845,0.00016438,2]
[394681742,1763869844543,-689.93620183,0.00016438,2]
[394681743,1763869844552,-510.38000115,0.00016438,2]
[394681744,1763869844562,-689.93620183,0.00016438,2]
[394681745,1763869844572,-689.93620183,0.00016438,2]
[394681746,1763869844583,-689.93620183,0.00016438,2]
[394681747,1763869844594,-689.93620183,0.00016438,2]
[394681748,1763869844604,-689.93620183,0.00016438,2]
[394681749,1763869844613,-689.93620183,0.00016438,2]
[394681750,1763869844622,-689.93620183,0.00016438,2]
[394681751,1763869844631,-689.93620183,0.00016438,2]
[394681752,1763869844640,-510.38000115,0.00016438,2]
[394681753,1763869844649,-689.93620183,0.00016438,2]
[394681754,1763869844658,-689.93620183,0.00016438,2]
[394681755,1763869844667,-510.38000115,0.00016438,2]
[394681756,1763869844675,-689.93620183,0.00016438,2]
[394681757,1763869844684,-510.38000115,0.00016438,2]
[394681758,1763869844693,-689.93620183,0.00016438,2]
[394681759,1763869844703,-510.38000115,0.00016438,2]
[394681760,1763869844712,-510.38000115,0.00016438,2]
[394681761,1763869844722,-689.93620183,0.00016438,2]
[394681762,1763869844731,-689.93620183,0.00016438,2]
[394681763,1763869844740,-510.38000115,0.00016438,2]
[394681764,1763869844749,-530.14205771,0.00016438,2]
[394681858,1763871032891,-240.69476354,8.967e-05,2]
[394681860,1763871032900,-240.69476354,9.058e-05,2]
[394681861,1763871032909,-129.55957147,9.149e-05,2]
[394681862,1763871038338,-111.13519207,9.149e-05,2]
[394681863,1763871038348,-150.0,9.571e-05,2]
[394681864,1763871038357,-284.60890505,0.00010061,2]
[394681865,1763871038366,-240.69476354,0.00010701,2]
[394681866,1763871038375,-2301.12813868,0.00010991,2]
[394681867,1763871038387,-673.35,0.00010991,2]
[394681868,1763871038399,-1704.36691922,0.00010991,2]
[394681869,1763871038408,-177.0,0.00011571,2]
[394681870,1763871038416,-261.18232021,0.00013467,2]
[394681871,1763871038426,-500.0,0.00013467,2]
[394681872,1763871038435,-500.0,0.00013467,2]
[394681873,1763871038444,-500.0,0.00013467,2]
[394681874,1763871038454,-10.32173481,0.00013467,2]
[394681875,1763871038465,-489.67826519,0.00013467,2]
[394681876,1763871038474,-374.26173481,0.00013467,2]
[394681897,1763871040397,-125.73826519,0.00013467,2]
[394681899,1763871040406,-500.0,0.00013467,2]
[394681901,1763871040415,-500.0,0.00013467,2]
[394681903,1763871040425,-932.0,0.00013467,2]
[394681905,1763871040434,-300.0,0.00013467,2]
[394681907,1763871040443,-1200.0,0.00013467,2]
[394681909,1763871040453,-13693.66173481,0.00013468,2]
[394681911,1763871040463,-4000.0,0.00013468,2]
[394681914,1763871040478,-3999.998655,0.00013468,2]
[394682176,1763871045013,-1131.03790214,0.00013468,2]
[394682217,1763872232633,-242.57614026,8.826e-05,2]
[394682218,1763872232643,-62.6677728,8.915e-05,2]
[394682219,1763872232688,-179.90836746,8.915e-05,2]
[394682220,1763872232698,-150.0,9.235e-05,2]
[394682221,1763872232707,-373.03589398,0.00010061,2]
[394682222,1763872232716,-65.47235334,0.00010701,2]
[394682246,1763872240815,-97.35057534,0.00010701,2]
[394682248,1763872240827,-177.0,0.00011235,2]
[394682250,1763872240836,-160.0,0.00013095,2]
[394682253,1763872240846,-204.0,0.00013235,2]
[394682255,1763872240856,-768.0,0.00013363,2]
[394682256,1763872240865,-206.0,0.00013363,2]
[394682259,1763872240875,-695.0,0.00013364,2]
[394682261,1763872240885,-15694.15155669,0.00013364,2]
[394682449,1763872246864,-372.9242503,0.0001323,2]
[394682526,1763873431897,-158.03401868,9.355e-05,2]
[394682528,1763873431906,-158.03401868,9.449e-05,2]
[394682530,1763873431915,-150.0,9.592e-05,2]
[394682532,1763873431924,-298.5182259,0.00010061,2]
[394682534,1763873431934,-158.03401868,0.00010549,2]
[394682536,1763873431943,-177.0,0.00011592,2]
[394682538,1763873431954,-353.29325365,0.00013057,2]
[394682540,1763873431963,-1392.4449448,0.00013164,2]
[394682541,1763873431972,-500.0,0.00013263,2]
[394682543,1763873431981,-193.341,0.00013263,2]
[394682545,1763873431990,-47374.50125193,0.00013264,2]
[394682657,1763873437853,-2625.49874807,0.00013264,2]
[394682658,1763873437862,-324.12333974,0.00013264,2]
[394682659,1763873437871,-500.0,0.00013264,2]
[394682660,1763873437881,-500.0,0.00013264,2]
[394682661,1763873437890,-25.75362079,0.00013264,2]
[394682662,1763873437902,-474.24637921,0.00013264,2]
[394682663,1763873437911,-500.0,0.00013264,2]
[394682664,1763873437921,-50.37791219,0.00013264,2]
[394682665,1763873437931,-449.62208781,0.00013264,2]
[394682666,1763873437940,-500.0,0.00013264,2]
[394682667,1763873437951,-408.35560566,0.00013264,2]
[394682668,1763873437960,-500.0,0.00013264,2]
[394682669,1763873437970,-500.0,0.00013264,2]
[394682670,1763873437979,-500.0,0.00013264,2]
[394682671,1763873437988,-500.0,0.00013264,2]
[394682672,1763873437997,-500.0,0.00013264,2]
[394682673,1763873438007,-500.0,0.00013264,2]
[394682674,1763873438016,-500.0,0.00013264,2]
[394682675,1763873438025,-500.0,0.00013264,2]
[394682676,1763873438034,-505.07794007,0.00013264,2]
[394682677,1763873438043,-450.0,0.00013264,2]
[394682678,1763873438053,-389.77039412,0.00013273,2]
[394682679,1763873438065,-111.55764645,0.00013273,2]
[394682680,1763873438074,-511.76744954,0.00013273,2]
[394682681,1763873438083,-500.44945546,0.00013273,2]
[394682682,1763873438092,-500.93977236,0.00013273,2]
[394682683,1763873438102,-440.45928904,0.00013273,2]
[394682684,1763873438111,-60.81436923,0.00013273,2]
[394682688,1763873440027,-104.00422175,0.00013273,2]
[394682689,1763873440037,-500.0,0.00013273,2]
[394682690,1763873440047,-216.11309018,0.00013273,2]
[394682691,1763873440056,-260.70700852,0.00013273,2]
[394682692,1763873440066,-500.0,0.00013273,2]
[394682693,1763873440075,-300.0,0.0001349,2]
[394682694,1763873440085,-257.39500366,0.00013499,2]
[394682695,1763873440094,-204.0,0.00013592,2]
[394682696,1763873440104,-513.64558955,0.00013698,2]
[394682697,1763873440113,-220.05476235,0.00013698,2]
[394682698,1763873440122,-500.0,0.00013698,2]
[394682699,1763873440131,-502.46115512,0.00013698,2]
[394682701,1763873440140,-622.077742,0.00013699,2]
[394682703,1763873440149,-1091.605119,0.00013699,2]
[394682704,1763873440158,-752.7601387,0.00013699,2]
[394682705,1763873440168,-500.0,0.00013699,2]
[394682706,1763873440177,-205.873,0.00013699,2]
[394682708,1763873440187,-326.88126689,0.00013821,2]
[394682710,1763873440196,-1096.88926952,0.00013821,2]
[394682711,1763873440206,-269.22605333,0.00014187,2]
[394682712,1763873440215,-271.489085,0.00014368,2]
[394682713,1763873440224,-151.0,0.00014368,2]
[394682714,1763873440233,-151.0,0.00014368,2]
[394682715,1763873440243,-151.0,0.00014368,2]
[394682716,1763873440253,-151.0,0.00014368,2]
[394682717,1763873440262,-151.0,0.00014368,2]
[394682718,1763873440271,-151.0,0.00014368,2]
[394682719,1763873440281,-151.0,0.00014368,2]
[394682720,1763873440290,-302.517,0.00014384,2]
[394682721,1763873440299,-158.03401868,0.00014473,2]
[394682722,1763873440308,-2546.6243046,0.00014521,2]
[394682723,1763873440320,-2575.59881594,0.00014521,2]
[394682777,1763873446014,-947.03437445,0.00014375,2]
[394682877,1763874632103,-174.38236552,9.267e-05,2]
[394682879,1763874632112,-174.38236552,9.361e-05,2]
[394682881,1763874632121,-150.0,9.504e-05,2]
[394682883,1763874632131,-238.88621077,0.00010061,2]
[394682885,1763874632140,-174.38236552,0.00010475,2]
[394682887,1763874632149,-177.0,0.00011504,2]
[394682889,1763874632158,-300.0,0.00013159,2]
[394682892,1763874632168,-300.0,0.00013159,2]
[394682894,1763874632178,-300.0,0.00013159,2]
[394682895,1763874632187,-1200.0,0.00013159,2]
[394682896,1763874632197,-259.63508347,0.00013159,2]
[394683357,1763874845193,235.34,1e-05,2]
[394683358,1763875385134,1000.0,0.0002,30]
[394683365,1763875450907,1000.0,0.00012,6]
[394683377,1763875550223,399.0,0.0002,30]
[394683411,1763875832341,-168.36918103,8.615e-05,2]
[394683413,1763875832350,-168.36918103,8.702e-05,2]
[394683415,1763875832359,-168.36918103,8.79e-05,2]
[394683416,1763875832368,-150.0,8.924e-05,2]
[394683417,1763875832377,-318.56801582,0.00010061,2]
[394683418,1763875832386,-168.36918103,0.00010249,2]
[394683419,1763875832396,-500.6817909,0.00010413,2]
[394683420,1763875832404,-177.0,0.00010924,2]
[394683421,1763875832414,-126.47865067,0.00011,2]
[394683431,1763875838295,-2079.52134933,0.00011,2]
[394683432,1763875838305,-300.29067239,0.0001144,2]
[394683433,1763875838315,-300.0,0.00012898,2]
[394683434,1763875838327,-3032.6894085,0.00012899,2]
[394683435,1763875838355,-1073.67893479,0.00012899,2]
[394683480,1763875840502,-416.35171708,0.0001089,2]
[394683503,1763875845091,-1663.16963225,0.0001089,2]
[394683505,1763875845100,-12901.74787955,0.00012899,2]
[394683569,1763875846573,-342.55454446,0.00012899,2]
[394683578,1763875958563,196.43071042,0.0001176,6]
[394683579,1763875958862,196.43071042,0.0001152,6]
[394683580,1763875959161,196.43071042,0.0001128,6]
[394683581,1763875959466,196.43071042,0.0001104,6]
[394683582,1763875959758,196.43071042,0.000108,6]
[394683583,1763875961439,196.43071042,0.00013063,9]
[394683585,1763876317141,160.71603573,0.0001152,6]
[394683586,1763876317448,160.71603573,0.0001104,6]
[394683587,1763876317737,160.71603573,0.0001056,6]
[394683588,1763876318039,160.71603573,0.0001008,6]
[394683589,1763876374986,152.257298,0.0001176,6]
[394683590,1763876375035,152.257298,0.0001152,6]
[394683591,1763876375109,152.257298,0.0001128,6]
[394683592,1763876375427,152.257298,0.0001104,6]
[394683593,1763876452631,2001.5,0.0002,30]
[394683624,1763877032575,-196.43071042,8.49e-05,2]
[394683626,1763877032585,-150.0,8.533e-05,2]
[394683628,1763877032594,-196.43071042,8.576e-05,2]
[394683630,1763877032603,-165.16781497,8.663e-05,2]
[394683670,1763877038460,-196.43071042,8.405e-05,2]
[394683672,1763877038469,-31.26289545,8.663e-05,2]
[394683674,1763877038478,-212.52021582,0.00010061,2]
[394683676,1763877038487,-184.77908808,0.00010061,2]
[394683678,1763877038496,-177.0,0.00010533,2]
[394683680,1763877038505,-160.0051963,0.00010889,2]
[394683682,1763877038514,-107.3924555,0.00012533,2]
[394683726,1763877040620,-96.6075445,0.00012533,2]
[394683727,1763877040629,-2127.3064393,0.0001269,2]
[394683728,1763877040639,-300.0,0.00012716,2]
[394683729,1763877040649,-500.0,0.00012717,2]
[394683730,1763877040660,-500.0,0.00012717,2]
[394683731,1763877040669,-500.0,0.00012717,2]
[394683732,1763877040868,-500.0,0.00012717,2]
[394683733,1763877040878,-500.0,0.00012717,2]
[394683734,1763877040887,-500.0,0.00012717,2]
[394683735,1763877040896,-500.0,0.00012717,2]
[394683736,1763877040906,-500.0,0.00012717,2]
[394683737,1763877040916,-500.0,0.00012717,2]
[394683738,1763877040926,-282.48748468,0.00012717,2]
[394683758,1763877045701,-388.3,0.0001259,2]
[394683759,1763877045712,-1505.61852213,0.0001259,2]
[394683760,1763877045722,-86.40763454,0.00012717,2]
[394683766,1763877046710,-131.10488078,0.00012717,2]
[394683767,1763877046720,-500.0,0.00012717,2]
[394683768,1763877046732,-500.0,0.00012717,2]
[394683769,1763877046741,-500.0,0.00012717,2]
[394683770,1763877046750,-176.40600681,0.00012717,2]
[394683771,1763877046759,-16686.92525726,0.00012718,2]
[394683772,1763877398675,181.19,0.00017409,30]
[394683773,1763877399084,362.38,0.00018238,30]
[394683774,1763877399484,543.57,0.00019067,30]
[394683775,1763877399883,724.76,0.00019896,30]
[394683779,1763877629688,1823.0,0.0002,30]
[394683797,1763877757856,173.3389625,0.0001333,9]
[394683798,1763877759590,173.3389625,0.0001176,6]
[394683806,1763878174104,-160.00519638,7.426e-05,2]
[394683807,1763878174128,-23.13838862,7.501e-05,2]
[394683833,1763878231788,-150.0,7.465e-05,2]
[394683835,1763878231798,-150.0,7.54e-05,2]
[394683836,1763878231809,-141.0,7.616e-05,2]
[394683838,1763878231821,-9.0,7.616e-05,2]
[394683839,1763878231830,-150.0,7.693e-05,2]
[394683840,1763878231839,-173.3389625,8.634e-05,2]
[394683841,1763878231848,-177.0,9.693e-05,2]
[394683842,1763878231857,-203.25769582,9.732e-05,2]
[394683843,1763878231866,-173.3389625,0.00011235,2]
[394683844,1763878231875,-204.0,0.00011693,2]
[394683845,1763878231885,-108.47442892,0.00012425,2]
[394683846,1763878231909,-501.7934699,0.00012425,2]
[394683879,1763878237875,-1096.3062193,0.00012301,2]
[394683886,1763878237934,-420.73232128,0.00012301,2]
[394683888,1763878237944,-990.385025,0.00012425,2]
[394684140,1763878245972,-526.65351558,0.00012301,2]
[394684141,1763878245982,-526.65351558,0.00012425,2]
[394684142,1763878245992,-650.4779326,0.0001243,2]
[394684144,1763878246001,-208.38885659,0.00012496,2]
[394684146,1763878246010,-352.93400076,0.00012496,2]
[394684147,1763878246019,-500.0,0.00012496,2]
[394684148,1763878246028,-500.0,0.00012496,2]
[394684150,1763878246038,-214.40008816,0.00012496,2]
[394684156,1763878246111,-104.1396569,0.00012496,2]
[394684158,1763878246120,-300.0,0.00012496,2]
[394684159,1763878246129,-17002.50645852,0.00012497,2]
[394684160,1763878246140,-634.58328759,0.00012497,2]
[394684234,1763879432078,-153.1423035,8.393e-05,2]
[394684235,1763879432095,-153.1423035,8.478e-05,2]
[394684237,1763879432112,-153.1423035,8.564e-05,2]
[394684239,1763879432121,-46.43067643,8.695e-05,2]
[394684250,1763879437970,-103.56932357,8.695e-05,2]
[394684251,1763879437980,-201.64694798,0.00010061,2]
[394684252,1763879437990,-450.99813675,0.00010327,2]
[394684253,1763879437999,-177.0,0.00010695,2]
[394684254,1763879438008,-157.097199,0.00011203,2]
[394684255,1763879438019,-887.5075229,0.0001205,2]
[394684256,1763879438028,-2253.55238905,0.00012149,2]
[394684257,1763879438038,-300.0,0.0001248,2]
[394684258,1763879438047,-634.0,0.00012481,2]
[394684259,1763879438056,-50000.0,0.00012481,2]
[394684260,1763879438065,-8653.6517682,0.00012483,2]
[394684261,1763879438075,-151.0,0.00012483,2]
[394684262,1763879438084,-249.167164,0.00012483,2]
[394684263,1763879438093,-234.10531382,0.00012497,2]
[394684264,1763879438105,-151.0,0.00012533,2]
[394684265,1763879438115,-152.753891,0.00012533,2]
[394684266,1763879438124,-500.0,0.00012533,2]
[394684267,1763879438133,-226.88633782,0.00012533,2]
[394684268,1763879438143,-500.0,0.00012533,2]
[394684269,1763879438152,-500.0,0.00012533,2]
[394684270,1763879438161,-500.0,0.00012533,2]
[394684271,1763879438170,-403.55455805,0.00012533,2]
[394684272,1763879438179,-500.0,0.00012533,2]
[394684273,1763879438188,-500.0,0.00012533,2]